fUSD/lending_fUSD_20240420
["ID","MTS","AMOUNT","RATE_DAILY","PERIOD"]
[323052280,1713621083412,-712.6,0.00016164,2]
[323052281,1713621083422,-500.0,0.00016164,2]
[323052282,1713621083431,-500.0,0.00016164,2]
[323052283,1713621083440,-964.32,0.00016164,2]
[323052284,1713621083450,-500.0,0.00016164,2]
[323052285,1713621083459,-611.81,0.00016164,2]
[323052286,1713621083469,-1500.36,0.00016164,2]
[323052287,1713621083480,-500.0,0.00016164,2]
[323052288,1713621083490,-630.97,0.00016164,2]
[323052289,1713621083500,-1123.09,0.00016164,2]
[323052290,1713621083509,-500.0,0.00016164,2]
[323052291,1713621083518,-1122.67,0.00016164,2]
[323052292,1713621083529,-500.0,0.00016164,2]
[323052293,1713621083540,-571.83,0.00016164,2]
[323052294,1713621083549,-959.94,0.00016164,2]
[323052295,1713621083560,-666.18,0.00016164,2]
[323052296,1713621083570,-717.02,0.00016164,2]
[323052297,1713621083579,-500.0,0.00016164,2]
[323052298,1713621083588,-656.38,0.00016164,2]
[323052299,1713621083597,-672.57,0.00016164,2]
[323052300,1713621083606,-817.63,0.00016164,2]
[323052301,1713621083615,-500.0,0.00016164,2]
[323052302,1713621083625,-748.28,0.00016164,2]
[323052303,1713621083635,-1401.32,0.00016164,2]
[323052304,1713621083645,-565.98143801,0.00016164,2]
[323052305,1713621083655,-1699.19,0.00016164,2]
[323052306,1713621083665,-500.0,0.00016164,2]
[323052307,1713621083674,-1021.58,0.00016164,2]
[323052308,1713621083684,-2008.01,0.00016164,2]
[323052309,1713621083694,-502.08,0.00016164,2]
[323052310,1713621083704,-623.84,0.00016164,2]
[323052311,1713621083715,-556.29,0.00016164,2]
[323052312,1713621083725,-1672.8,0.00016164,2]
[323052313,1713621083736,-1383.08,0.00016164,2]
[323052314,1713621083746,-500.0,0.00016164,2]
[323052315,1713621083757,-905.55,0.00016164,2]
[323052316,1713621083767,-500.0,0.00016164,2]
[323052317,1713621083777,-500.0,0.00016164,2]
[323052318,1713621083787,-500.0,0.00016164,2]
[323052319,1713621083796,-500.0,0.00016164,2]
[323052320,1713621083805,-500.0,0.00016164,2]
[323052321,1713621083815,-500.0,0.00016164,2]
[323052322,1713621083825,-1271.86,0.00016164,2]
[323052323,1713621083834,-500.0,0.00016164,2]
[323052324,1713621083844,-531.26,0.00016164,2]
[323052325,1713621083853,-858.15,0.00016164,2]
[323052326,1713621083863,-2051.78,0.00016164,2]
[323052327,1713621083872,-500.0,0.00016164,2]
[323052328,1713621083881,-500.0,0.00016164,2]
[323052329,1713621083891,-2102.91,0.00016164,2]
[323052330,1713621083900,-495.25,0.00016164,2]
[323052331,1713621083909,-500.0,0.00016164,2]
[323052332,1713621083919,-888.43,0.00016164,2]
[323052333,1713621083929,-1428.28,0.00016164,2]
[323052334,1713621083938,-500.0,0.00016164,2]
[323052335,1713621083947,-547.06,0.00016164,2]
[323052336,1713621083957,-500.0,0.00016164,2]
[323052337,1713621083966,-1132.15,0.00016164,2]
[323052338,1713621083976,-1220.03,0.00016164,2]
[323052339,1713621083986,-1590.37,0.00016164,2]
[323052340,1713621083996,-640.38,0.00016164,2]
[323052341,1713621084005,-621.99,0.00016164,2]
[323052342,1713621084015,-500.0,0.00016164,2]
[323052343,1713621084024,-1083.02,0.00016164,2]
[323052344,1713621084034,-912.32,0.00016164,2]
[323052345,1713621084043,-1323.41,0.00016164,2]
[323052346,1713621084053,-500.0,0.00016164,2]
[323052347,1713621084063,-500.0,0.00016164,2]
[323052348,1713621084072,-827.0,0.00016164,2]
[323052349,1713621084082,-590.76,0.00016164,2]
[323052350,1713621084092,-720.61,0.00016164,2]
[323052351,1713621084101,-1207.81,0.00016164,2]
[323052352,1713621084110,-500.0,0.00016164,2]
[323052353,1713621084120,-644.34912331,0.00016164,2]
[323052354,1713621084130,-972.02,0.00016164,2]
[323052355,1713621084139,-1649.09,0.00016164,2]
[323052356,1713621084149,-500.0,0.00016164,2]
[323052357,1713621084158,-3308.96,0.00016164,2]
[323052358,1713621084168,-376.75678424,0.00016164,2]
[323052359,1713621084177,-1214.04,0.00016164,2]
[323052360,1713621084186,-500.0,0.00016164,2]
[323052361,1713621084196,-500.0,0.00016164,2]
[323052362,1713621084206,-500.0,0.00016164,2]
[323052363,1713621084215,-803.54,0.00016164,2]
[323052364,1713621084224,-1303.19,0.00016164,2]
[323052365,1713621084236,-500.0,0.00016164,2]
[323052366,1713621084245,-3936.85,0.00016164,2]
[323052367,1713621084255,-500.0,0.00016164,2]
[323052368,1713621084264,-599.69,0.00016164,2]
[323052369,1713621084273,-500.0,0.00016164,2]
[323052370,1713621084287,-586.97,0.00016164,2]
[323052371,1713621084296,-1031.32,0.00016164,2]
[323052372,1713621084306,-789.55,0.00016164,2]
[323052373,1713621084315,-500.0,0.00016164,2]
[323052374,1713621084324,-1204.32,0.00016164,2]
[323052375,1713621084334,-500.0,0.00016164,2]
[323052376,1713621084343,-500.0,0.00016164,2]
[323052377,1713621084352,-500.0,0.00016164,2]
[323052378,1713621084362,-500.0,0.00016164,2]
[323052379,1713621084371,-702.73,0.00016164,2]
[323052380,1713621084381,-336.90906443,0.00016164,2]
[323052381,1713621084390,-516.52,0.00016164,2]
[323052382,1713621084400,-500.0,0.00016164,2]
[323052383,1713621084409,-500.0,0.00016164,2]
[323052384,1713621084418,-3310.74,0.00016164,2]
[323052385,1713621084427,-500.0,0.00016164,2]
[323052386,1713621084436,-500.0,0.00016164,2]
[323052387,1713621084446,-500.0,0.00016164,2]
[323052388,1713621084456,-500.0,0.00016164,2]
[323052389,1713621084466,-2883.58,0.00016164,2]
[323052390,1713621084476,-1816.08,0.00016164,2]
[323052391,1713621084567,-585.36,0.00016164,2]
[323052392,1713621084577,-855.47,0.00016164,2]
[323052393,1713621084587,-534.99,0.00016164,2]
[323052394,1713621084596,-500.0,0.00016164,2]
[323052395,1713621084605,-25055.79,0.00016164,2]
[323052396,1713621084614,-1302.76,0.00016164,2]
[323052397,1713621084624,-2836.68,0.00016164,2]
[323052398,1713621084633,-11346.84,0.00016164,2]
[323052399,1713621084643,-1460.91,0.00016164,2]
[323052400,1713621084652,-604.68,0.00016164,2]
[323052401,1713621084661,-500.0,0.00016164,2]
[323052402,1713621084670,-2104.73,0.00016164,2]
[323052403,1713621084679,-500.0,0.00016164,2]
[323052404,1713621084689,-500.0,0.00016164,2]
[323052405,1713621084698,-500.0,0.00016164,2]
[323052406,1713621084707,-500.0,0.00016164,2]
[323052407,1713621084716,-500.0,0.00016164,2]
[323052408,1713621084726,-500.0,0.00016164,2]
[323052409,1713621084736,-2073.42,0.00016164,2]
[323052410,1713621084745,-1526.62,0.00016164,2]
[323052411,1713621084755,-500.0,0.00016164,2]
[323052412,1713621084764,-500.0,0.00016164,2]
[323052413,1713621084774,-500.0,0.00016164,2]
[323052414,1713621084784,-1538.77,0.00016164,2]
[323052415,1713621084793,-17543.18,0.00016164,2]
[323052416,1713621084803,-331.53621609,0.00016164,2]
[323052417,1713621084813,-500.0,0.00016164,2]
[323052418,1713621084822,-500.0,0.00016164,2]
[323052419,1713621084832,-4660.49,0.00016164,2]
[323052420,1713621084841,-2699.08,0.00016164,2]
[323052421,1713621084850,-1491.91,0.00016164,2]
[323052422,1713621084860,-500.0,0.00016164,2]
[323052423,1713621084869,-1530.53,0.00016164,2]
[323052424,1713621084878,-1179.82,0.00016164,2]
[323052425,1713621084887,-500.0,0.00016164,2]
[323052426,1713621084896,-581.88,0.00016164,2]
[323052427,1713621084906,-500.0,0.00016164,2]
[323052428,1713621084916,-2419.34,0.00016164,2]
[323052429,1713621084926,-500.0,0.00016164,2]
[323052430,1713621084935,-1046.7,0.00016164,2]
[323052431,1713621084945,-1397.79,0.00016164,2]
[323052432,1713621084955,-929.27,0.00016164,2]
[323052433,1713621084965,-2207.26,0.00016164,2]
[323052434,1713621084974,-5291.84,0.00016164,2]
[323052435,1713621084985,-983.83,0.00016164,2]
[323052436,1713621084995,-584.35,0.00016164,2]
[323052437,1713621085005,-500.0,0.00016164,2]
[323052438,1713621085015,-689.72,0.00016164,2]
[323052439,1713621085024,-2126.15,0.00016164,2]
[323052440,1713621085034,-2569.48,0.00016164,2]
[323052441,1713621085044,-3579.93,0.00016164,2]
[323052442,1713621085054,-820.73,0.00016164,2]
[323052443,1713621085063,-873.88,0.00016164,2]
[323052444,1713621085073,-500.0,0.00016164,2]
[323052445,1713621085083,-5218.13,0.00016164,2]
[323052446,1713621085093,-500.0,0.00016164,2]
[323052447,1713621085102,-500.0,0.00016164,2]
[323052448,1713621085113,-500.0,0.00016164,2]
[323052449,1713621085123,-987.0,0.00016164,2]
[323052450,1713621085133,-500.0,0.00016164,2]
[323052451,1713621085143,-20114.69,0.00016164,2]
[323052452,1713621085152,-500.0,0.00016164,2]
[323052453,1713621085162,-893.57,0.00016164,2]
[323052454,1713621085171,-500.0,0.00016164,2]
[323052455,1713621085180,-637.43,0.00016164,2]
[323052456,1713621085190,-1731.18,0.00016164,2]
[323052457,1713621085199,-1285.12,0.00016164,2]
[323052458,1713621085208,-1109.59,0.00016164,2]
[323052459,1713621085218,-1096.27,0.00016164,2]
[323052460,1713621085228,-500.0,0.00016164,2]
[323052461,1713621085238,-725.21,0.00016164,2]
[323052462,1713621085248,-500.0,0.00016164,2]
[323052463,1713621085257,-500.0,0.00016164,2]
[323052464,1713621085267,-1089.81,0.00016164,2]
[323052465,1713621085277,-508.71,0.00016164,2]
[323052466,1713621085288,-500.0,0.00016164,2]
[323052467,1713621085299,-1517.58,0.00016164,2]
[323052468,1713621085309,-500.0,0.00016164,2]
[323052469,1713621085318,-520.08,0.00016164,2]
[323052470,1713621085327,-500.0,0.00016164,2]
[323052471,1713621085337,-500.0,0.00016164,2]
[323052472,1713621085347,-500.0,0.00016164,2]
[323052473,1713621085357,-1955.1,0.00016164,2]
[323052474,1713621085367,-500.0,0.00016164,2]
[323052475,1713621085377,-1531.19,0.00016164,2]
[323052476,1713621085386,-620.62,0.00016164,2]
[323052477,1713621085396,-967.39,0.00016164,2]
[323052478,1713621085405,-7480.38,0.00016164,2]
[323052479,1713621085415,-747.89,0.00016164,2]
[323052480,1713621085424,-873.58,0.00016164,2]
[323052481,1713621085434,-1894.49,0.00016164,2]
[323052482,1713621085443,-500.0,0.00016164,2]
[323052483,1713621085453,-1993.22,0.00016164,2]
[323052484,1713621085463,-880.45,0.00016164,2]
[323052485,1713621085472,-500.0,0.00016164,2]
[323052486,1713621085482,-500.0,0.00016164,2]
[323052487,1713621085492,-1085.31,0.00016164,2]
[323052488,1713621085502,-500.0,0.00016164,2]
[323052489,1713621085513,-500.0,0.00016164,2]
[323052490,1713621085523,-500.0,0.00016164,2]
[323052491,1713621085533,-2753.72,0.00016164,2]
[323052492,1713621085543,-500.0,0.00016164,2]
[323052493,1713621085553,-1162.41,0.00016164,2]
[323052494,1713621085564,-2731.21,0.00016164,2]
[323052495,1713621085575,-500.0,0.00016164,2]
[323052496,1713621085584,-1954.97,0.00016164,2]
[323052497,1713621085594,-794.92,0.00016164,2]
[323052498,1713621085604,-2627.79,0.00016164,2]
[323052499,1713621085613,-500.0,0.00016164,2]
[323052500,1713621085623,-1013.89,0.00016164,2]
[323052501,1713621085633,-500.0,0.00016164,2]
[323052502,1713621085642,-500.0,0.00016164,2]
[323052503,1713621085651,-1131.55,0.00016164,2]
[323052504,1713621085661,-622.04,0.00016164,2]
[323052505,1713621085670,-1320.88,0.00016164,2]
[323052506,1713621085680,-500.0,0.00016164,2]
[323052507,1713621085690,-1413.35,0.00016164,2]
[323052508,1713621085699,-500.0,0.00016164,2]
[323052509,1713621085708,-500.0,0.00016164,2]
[323052510,1713621085718,-2346.4,0.00016164,2]
[323052511,1713621085729,-563.88,0.00016164,2]
[323052512,1713621085739,-803.26,0.00016164,2]
[323052513,1713621085749,-2292.01,0.00016164,2]
[323052514,1713621085759,-831.92,0.00016164,2]
[323052515,1713621085769,-500.0,0.00016164,2]
[323052516,1713621085778,-1128.04,0.00016164,2]
[323052517,1713621085787,-5369.64,0.00016164,2]
[323052518,1713621085797,-500.0,0.00016164,2]
[323052519,1713621085807,-3431.1,0.00016164,2]
[323052520,1713621085816,-680.01,0.00016164,2]
[323052521,1713621085826,-546.08,0.00016164,2]
[323052522,1713621085835,-500.0,0.00016164,2]
[323052523,1713621085845,-2676.86,0.00016164,2]
[323052524,1713621085855,-500.0,0.00016164,2]
[323052525,1713621085865,-595.21486155,0.00016164,2]
[323052526,1713621085874,-727.28,0.00016164,2]
[323052527,1713621085884,-2216.75,0.00016164,2]
[323052528,1713621085894,-500.0,0.00016164,2]
[323052529,1713621085904,-823.84,0.00016164,2]
[323052530,1713621085915,-500.0,0.00016164,2]
[323052531,1713621085925,-1588.82,0.00016164,2]
[323052532,1713621085934,-841.25,0.00016164,2]
[323052533,1713621085944,-1811.35,0.00016164,2]
[323052534,1713621085954,-500.0,0.00016164,2]
[323052535,1713621085964,-500.0,0.00016164,2]
[323052536,1713621085975,-500.0,0.00016164,2]
[323052537,1713621085985,-314.64,0.00016164,2]
[323052538,1713621085995,-500.0,0.00016164,2]
[323052539,1713621086004,-906.35,0.00016164,2]
[323052540,1713621086014,-866.08,0.00016164,2]
[323052541,1713621086024,-1171.0,0.00016164,2]
[323052542,1713621086034,-3500.27,0.00016164,2]
[323052543,1713621086043,-1349.52,0.00016164,2]
[323052544,1713621086053,-4084.13,0.00016164,2]
[323052545,1713621086062,-506.37,0.00016164,2]
[323052546,1713621086072,-2730.13,0.00016164,2]
[323052547,1713621086082,-1215.96,0.00016164,2]
[323052548,1713621086091,-500.0,0.00016164,2]
[323052549,1713621086101,-500.0,0.00016164,2]
[323052550,1713621086111,-500.0,0.00016164,2]
[323052551,1713621086122,-570.63,0.00016164,2]
[323052552,1713621086132,-1517.62,0.00016164,2]
[323052553,1713621086142,-500.0,0.00016164,2]
[323052554,1713621086152,-2492.62,0.00016164,2]
[323052555,1713621086163,-1694.66,0.00016164,2]
[323052556,1713621086173,-589.63,0.00016164,2]
[323052557,1713621086183,-1038.52,0.00016164,2]
[323052558,1713621086193,-500.0,0.00016164,2]
[323052559,1713621086203,-500.0,0.00016164,2]
[323052560,1713621086213,-544.68,0.00016164,2]
[323052561,1713621086223,-745.95,0.00016164,2]
[323052562,1713621086233,-500.0,0.00016164,2]
[323052563,1713621086243,-2146.81,0.00016164,2]
[323052564,1713621086252,-500.0,0.00016164,2]
[323052565,1713621086262,-12863.04,0.00016164,2]
[323052566,1713621086271,-500.0,0.00016164,2]
[323052567,1713621086284,-1580.69,0.00016164,2]
[323052568,1713621086295,-872.9,0.00016164,2]
[323052569,1713621086304,-2481.94,0.00016164,2]
[323052570,1713621086314,-517.67,0.00016164,2]
[323052571,1713621086324,-2416.85,0.00016164,2]
[323052572,1713621086333,-716.61,0.00016164,2]
[323052573,1713621086343,-607.93,0.00016164,2]
[323052574,1713621086352,-500.0,0.00016164,2]
[323052575,1713621086362,-698.46,0.00016164,2]
[323052576,1713621086373,-1176.49,0.00016164,2]
[323052577,1713621086383,-1895.23,0.00016164,2]
[323052578,1713621086392,-834.84,0.00016164,2]
[323052579,1713621086405,-2366.37,0.00016164,2]
[323052580,1713621086415,-500.0,0.00016164,2]
[323052581,1713621086424,-500.0,0.00016164,2]
[323052582,1713621086433,-500.0,0.00016164,2]
[323052583,1713621086443,-500.0,0.00016164,2]
[323052584,1713621086452,-1264.42,0.00016164,2]
[323052585,1713621086461,-500.0,0.00016164,2]
[323052586,1713621086471,-1525.57,0.00016164,2]
[323052587,1713621086482,-1200.1,0.00016164,2]
[323052588,1713621086491,-500.0,0.00016164,2]
[323052589,1713621086500,-500.0,0.00016164,2]
[323052590,1713621086510,-2596.31,0.00016164,2]
[323052591,1713621086519,-3734.56,0.00016164,2]
[323052592,1713621086528,-735.18,0.00016164,2]
[323052593,1713621086538,-1983.17,0.00016164,2]
[323052594,1713621086547,-685.33,0.00016164,2]
[323052595,1713621086556,-1892.67,0.00016164,2]
[323052596,1713621086565,-794.67,0.00016164,2]
[323052597,1713621086575,-2762.86,0.00016164,2]
[323052598,1713621086585,-698.53,0.00016164,2]
[323052599,1713621086594,-500.0,0.00016164,2]
[323052600,1713621086605,-4314.41,0.00016164,2]
[323052601,1713621086614,-928.74,0.00016164,2]
[323052602,1713621086623,-500.0,0.00016164,2]
[323052603,1713621086633,-556.39,0.00016164,2]
[323052604,1713621086643,-704.33,0.00016164,2]
[323052605,1713621086652,-4750.03,0.00016164,2]
[323052606,1713621086661,-500.0,0.00016164,2]
[323052607,1713621086671,-500.0,0.00016164,2]
[323052608,1713621086681,-6352.14,0.00016164,2]
[323052609,1713621086691,-1612.53,0.00016164,2]
[323052610,1713621086700,-554.92,0.00016164,2]
[323052611,1713621086710,-500.0,0.00016164,2]
[323052612,1713621086719,-500.0,0.00016164,2]
[323052613,1713621086729,-1230.53,0.00016164,2]
[323052614,1713621086739,-500.0,0.00016164,2]
[323052615,1713621086748,-1323.32,0.00016164,2]
[323052616,1713621086758,-5730.53,0.00016164,2]
[323052617,1713621086768,-3222.01,0.00016164,2]
[323052618,1713621086778,-1237.83,0.00016164,2]
[323052619,1713621086788,-801.29,0.00016164,2]
[323052620,1713621086797,-500.0,0.00016164,2]
[323052621,1713621086807,-500.0,0.00016164,2]
[323052622,1713621086817,-500.0,0.00016164,2]
[323052623,1713621086826,-8896.9,0.00016164,2]
[323052624,1713621086836,-1250.13,0.00016164,2]
[323052625,1713621086847,-500.0,0.00016164,2]
[323052626,1713621086857,-21516.91,0.00016164,2]
[323052627,1713621086867,-1238.37,0.00016164,2]
[323052628,1713621086877,-1269.11,0.00016164,2]
[323052629,1713621086887,-500.0,0.00016164,2]
[323052630,1713621086896,-618.25,0.00016164,2]
[323052631,1713621086905,-622.79,0.00016164,2]
[323052632,1713621086915,-582.42,0.00016164,2]
[323052633,1713621086924,-500.0,0.00016164,2]
[323052634,1713621086934,-500.0,0.00016164,2]
[323052635,1713621086944,-500.0,0.00016164,2]
[323052636,1713621086953,-736.180461,0.00016164,2]
[323052637,1713621086963,-150.0,0.00016179,2]
[323052638,1713621086975,-300.0,0.00016192,2]
[323052639,1713621086985,-15844.99200633,0.00016197,2]
[323052640,1713621086995,-2161.07668387,0.00016209,2]
[323052641,1713621087005,-285.0,0.0001624,2]
[323052642,1713621087015,-208.328743,0.00016243,2]
[323052643,1713621087024,-815.865739,0.00016243,2]
[323052644,1713621087034,-163.173148,0.00016243,2]
[323052645,1713621087044,-160.291632,0.00016243,2]
[323052646,1713621087054,-160.291633,0.00016243,2]
[323052647,1713621087063,-2161.07668387,0.00016347,2]
[323052648,1713621087073,-15844.99200633,0.00016373,2]
[323052649,1713621087084,-150.45,0.00016382,2]
[323052650,1713621087093,-30210.3175016,0.00016427,2]
[323052651,1713621087102,-500.0,0.00016438,2]
[323052652,1713621087112,-500.0,0.00016438,2]
[323052653,1713621087121,-500.0,0.00016438,2]
[323052654,1713621087130,-635.04,0.00016438,2]
[323052655,1713621087140,-639.54,0.00016438,2]
[323052656,1713621087149,-500.0,0.00016438,2]
[323052657,1713621087158,-500.0,0.00016438,2]
[323052658,1713621087168,-852.82,0.00016438,2]
[323052659,1713621087177,-654.32,0.00016438,2]
[323052660,1713621087186,-500.0,0.00016438,2]
[323052661,1713621087196,-502.56,0.00016438,2]
[323052662,1713621087205,-500.0,0.00016438,2]
[323052663,1713621087214,-500.0,0.00016438,2]
[323052664,1713621087223,-500.0,0.00016438,2]
[323052665,1713621087233,-262.86442639,0.00016438,2]
[323052666,1713621087241,-500.0,0.00016438,2]
[323052667,1713621087251,-611.35,0.00016438,2]
[323052668,1713621087260,-500.0,0.00016438,2]
[323052669,1713621087269,-735.88,0.00016438,2]
[323052670,1713621087279,-500.0,0.00016438,2]
[323052671,1713621087290,-717.35,0.00016438,2]
[323052672,1713621087299,-500.0,0.00016438,2]
[323052673,1713621087309,-539.29,0.00016438,2]
[323052674,1713621087318,-500.0,0.00016438,2]
[323052675,1713621087328,-500.0,0.00016438,2]
[323052676,1713621087338,-500.0,0.00016438,2]
[323052677,1713621087347,-500.0,0.00016438,2]
[323052678,1713621087357,-500.0,0.00016438,2]
[323052679,1713621087367,-500.0,0.00016438,2]
[323052680,1713621087377,-500.0,0.00016438,2]
[323052681,1713621087386,-500.0,0.00016438,2]
[323052682,1713621087395,-569.73,0.00016438,2]
[323052683,1713621087405,-500.0,0.00016438,2]
[323052684,1713621087414,-500.0,0.00016438,2]
[323052685,1713621087423,-500.0,0.00016438,2]
[323052686,1713621087433,-827.03,0.00016438,2]
[323052687,1713621087443,-637.21,0.00016438,2]
[323052688,1713621087452,-500.0,0.00016438,2]
[323052689,1713621087461,-500.0,0.00016438,2]
[323052690,1713621087470,-322.58999295,0.00016438,2]
[323052691,1713621087480,-500.0,0.00016438,2]
[323052692,1713621087489,-579.7,0.00016438,2]
[323052693,1713621087499,-969.36,0.00016438,2]
[323052694,1713621087508,-500.0,0.00016438,2]
[323052695,1713621087517,-781.94,0.00016438,2]
[323052696,1713621087526,-667.13,0.00016438,2]
[323052697,1713621087537,-500.0,0.00016438,2]
[323052698,1713621087545,-500.0,0.00016438,2]
[323052699,1713621087555,-500.0,0.00016438,2]
[323052700,1713621087564,-500.0,0.00016438,2]
[323052701,1713621087574,-500.0,0.00016438,2]
[323052702,1713621087583,-500.0,0.00016438,2]
[323052703,1713621087594,-770.44,0.00016438,2]
[323052704,1713621087603,-1099.12,0.00016438,2]
[323052705,1713621087612,-500.0,0.00016438,2]
[323052706,1713621087622,-597.89,0.00016438,2]
[323052707,1713621087630,-500.0,0.00016438,2]
[323052708,1713621087639,-500.0,0.00016438,2]
[323052709,1713621087648,-522.54,0.00016438,2]
[323052710,1713621087657,-500.0,0.00016438,2]
[323052711,1713621087667,-500.0,0.00016438,2]
[323052712,1713621087676,-532.55,0.00016438,2]
[323052713,1713621087685,-500.0,0.00016438,2]
[323052714,1713621087694,-500.0,0.00016438,2]
[323052715,1713621087704,-618.57,0.00016438,2]
[323052716,1713621087713,-300.0,0.00016438,2]
[323052717,1713621087723,-300.0,0.00016438,2]
[323052718,1713621087733,-300.0,0.00016438,2]
[323052719,1713621087743,-300.0,0.00016438,2]
[323052720,1713621087752,-500.0,0.00016438,2]
[323052721,1713621087762,-300.0,0.00016438,2]
[323052722,1713621087772,-300.0,0.00016438,2]
[323052723,1713621087781,-245.23315222,0.00016438,2]
[323052724,1713621087791,-737.86,0.00016438,2]
[323052725,1713621087801,-500.0,0.00016438,2]
[323052726,1713621087811,-515.87,0.00016438,2]
[323052727,1713621087820,-912.68,0.00016438,2]
[323052728,1713621087830,-500.0,0.00016438,2]
[323052729,1713621087840,-500.0,0.00016438,2]
[323052730,1713621087850,-500.0,0.00016438,2]
[323052731,1713621087861,-860.75,0.00016438,2]
[323052732,1713621087871,-500.0,0.00016438,2]
[323052733,1713621087881,-702.21,0.00016438,2]
[323052734,1713621087892,-500.0,0.00016438,2]
[323052735,1713621087902,-500.0,0.00016438,2]
[323052736,1713621087912,-500.0,0.00016438,2]
[323052737,1713621087922,-500.0,0.00016438,2]
[323052738,1713621087931,-821.61,0.00016438,2]
[323052739,1713621087941,-500.0,0.00016438,2]
[323052740,1713621087951,-821.76,0.00016438,2]
[323052741,1713621087961,-549.15,0.00016438,2]
[323052742,1713621087972,-500.0,0.00016438,2]
[323052743,1713621087984,-500.0,0.00016438,2]
[323052744,1713621087994,-500.0,0.00016438,2]
[323052745,1713621088004,-500.0,0.00016438,2]
[323052746,1713621088014,-500.0,0.00016438,2]
[323052747,1713621088023,-940.84,0.00016438,2]
[323052748,1713621088033,-500.0,0.00016438,2]
[323052749,1713621088042,-863.56,0.00016438,2]
[323052750,1713621088052,-500.0,0.00016438,2]
[323052751,1713621088062,-1083.21,0.00016438,2]
[323052752,1713621088072,-500.0,0.00016438,2]
[323052753,1713621088082,-500.0,0.00016438,2]
[323052754,1713621088092,-1649.11,0.00016438,2]
[323052755,1713621088101,-500.0,0.00016438,2]
[323052756,1713621088111,-500.0,0.00016438,2]
[323052757,1713621088121,-933.2,0.00016438,2]
[323052758,1713621088130,-500.0,0.00016438,2]
[323052759,1713621088139,-1738.53,0.00016438,2]
[323052760,1713621088149,-500.0,0.00016438,2]
[323052761,1713621088158,-500.0,0.00016438,2]
[323052762,1713621088167,-500.0,0.00016438,2]
[323052763,1713621088177,-641.19,0.00016438,2]
[323052764,1713621088186,-546.2,0.00016438,2]
[323052765,1713621088196,-669.09,0.00016438,2]
[323052766,1713621088206,-538.48,0.00016438,2]
[323052767,1713621088215,-500.0,0.00016438,2]
[323052768,1713621088226,-526.85,0.00016438,2]
[323052769,1713621088239,-1472.9,0.00016438,2]
[323052770,1713621088249,-500.0,0.00016438,2]
[323052771,1713621088258,-679.04,0.00016438,2]
[323052772,1713621088269,-633.05,0.00016438,2]
[323052773,1713621088280,-500.0,0.00016438,2]
[323052774,1713621088291,-500.0,0.00016438,2]
[323052775,1713621088301,-500.0,0.00016438,2]
[323052776,1713621088311,-889.7,0.00016438,2]
[323052777,1713621088322,-749.34,0.00016438,2]
[323052778,1713621088332,-500.0,0.00016438,2]
[323052779,1713621088341,-614.66,0.00016438,2]